{"text_format":"3","workbook":"xlsx","n_sheets":2,"sheets":["Fluxo de Caixa","Gráfico de Fluxo de Caixa"],"not_rendered":{"charts":1,"defined_names":5},"read":"whole","date_system":"1900"}

{"sheet":"Fluxo de Caixa","index":0,"n_rows":61,"n_cols":16,"rows_kept":61,"merged":[[0,1,0,15],[1,1,1,15]]}
[null,"Projeção de Fluxo de Caixa Para Pequenas Empresas"]
[null,"Nome da Empresa"]
[null,"Data de início",{"$f":"TODAY()","v":"2019-04-23"}]
[null,"Alerta de valor mínimo de saldo",null,{"$f":"Dinheiro_mínimo","v":0},{"$f":"Dinheiro_mínimo","v":0},0,0,0,0,0,0,0,0,0,0]
[]
[null,null,"Início","jan/18","fev/18","mar/18","abr/18","mai/18","jun/18","jul/18","ago/18","set/18","out/18","nov/18","dez/18","Total"]
[null,"Dinheiro em caixa (início do mês)",null,{"$f":"C53","v":0},0,0,0,0,0,0,0,0,0,0,0]
[]
[null,"COBRANÇAS"," ","jan/18","fev/18","mar/18","abr/18","mai/18","jun/18","jul/18","ago/18","set/18","out/18","nov/18","dez/18","Total"]
[null,"Vendas a dinheiro",{"$nulls":13},{"$f":"SUM(D10:O10)","v":0}]
[null,"Lucros e subsídios",{"$nulls":13},0]
[null,"Cobranças a contas a receber",{"$nulls":13},0]
[null,"Juros, outros rendimentos",{"$nulls":13},0]
[null,"Receitas de empréstimos",{"$nulls":13},0]
[null,"Contribuições do proprietário",{"$nulls":13},0]
[null,"TOTAL DE COBRANÇAS",null,{"$f":"SUM(D10,D12:D15,(D11*-1))","v":0},0,0,0,0,0,0,0,0,0,0,0,{"$f":"SUBTOTAL(109,Cobranças[Total])","v":0}]
[null,"Total de dinheiro disponível",{"$f":"(C7+Cobranças[[#Totals],[ ]])","v":0},{"$f":"(D7+Cobranças[[#Totals],[jan/18]])","v":0},{"$f":"(E7+Cobranças[[#Totals],[fev/18]])","v":0},{"$f":"(F7+Cobranças[[#Totals],[mar/18]])","v":0},{"$f":"(G7+Cobranças[[#Totals],[abr/18]])","v":0},{"$f":"(H7+Cobranças[[#Totals],[mai/18]])","v":0},{"$f":"(I7+Cobranças[[#Totals],[jun/18]])","v":0},{"$f":"(J7+Cobranças[[#Totals],[jul/18]])","v":0},{"$f":"(K7+Cobranças[[#Totals],[ago/18]])","v":0},{"$f":"(L7+Cobranças[[#Totals],[set/18]])","v":0},{"$f":"(M7+Cobranças[[#Totals],[out/18]])","v":0},{"$f":"(N7+Cobranças[[#Totals],[nov/18]])","v":0},{"$f":"(O7+Cobranças[[#Totals],[dez/18]])","v":0}]
[]
[null,"PAGAMENTOS EFETUADOS"," ","jan/18","fev/18","mar/18","abr/18","mai/18","jun/18","jul/18","ago/18","set/18","out/18","nov/18","dez/18","Total"]
[null,"Publicidade",{"$nulls":13},{"$f":"SUM(D20:O20)","v":0}]
[null,"Comissões e taxas",{"$nulls":13},0]
[null,"Mão de obra contratada",{"$nulls":13},0]
[null,"Programas de benefícios dos colaboradores",{"$nulls":13},0]
[null,"Seguro (seguro de saúde não incluído)",{"$nulls":13},0]
[null,"Despesas de juros",{"$nulls":13},0]
[null,"Materiais e consumíveis (em COGS)",{"$nulls":13},0]
[null,"Refeições e entretenimento",{"$nulls":13},0]
[null,"Juros de hipoteca",{"$nulls":13},0]
[null,"Despesas de escritório",{"$nulls":13},0]
[null,"Outras despesas de juros",{"$nulls":13},0]
[null,"Plano de participação nos lucros e pensões",{"$nulls":13},0]
[null,"Compras para revenda",{"$nulls":13},0]
[null,"Renda ou lease",{"$nulls":13},0]
[null,"Renda ou lease: veículos, equipamentos",{"$nulls":13},0]
[null,"Reparações e manutenção",{"$nulls":13},0]
[null,"Consumíveis (não em COGS)",{"$nulls":13},0]
[null,"Impostos e licenças",{"$nulls":13},0]
[null,"Viagens",{"$nulls":13},0]
[null,"Serviços Públicos",{"$nulls":13},0]
[null,"Salários (sem benefícios fiscais para empregadores)",{"$nulls":13},0]
[null,"Outras despesas",{"$nulls":13},0]
[null,"Outras despesas",{"$nulls":13},0]
[null,"Outras despesas",{"$nulls":13},0]
[null,"Diversos",{"$nulls":13},0]
[null,"SUBTOTAL",null,{"$f":"SUBTOTAL(109,Despesas[jan/18])","v":0},{"$f":"SUBTOTAL(109,Despesas[fev/18])","v":0},{"$f":"SUBTOTAL(109,Despesas[mar/18])","v":0},{"$f":"SUBTOTAL(109,Despesas[abr/18])","v":0},{"$f":"SUBTOTAL(109,Despesas[mai/18])","v":0},{"$f":"SUBTOTAL(109,Despesas[jun/18])","v":0},{"$f":"SUBTOTAL(109,Despesas[jul/18])","v":0},{"$f":"SUBTOTAL(109,Despesas[ago/18])","v":0},{"$f":"SUBTOTAL(109,Despesas[set/18])","v":0},{"$f":"SUBTOTAL(109,Despesas[out/18])","v":0},{"$f":"SUBTOTAL(109,Despesas[nov/18])","v":0},{"$f":"SUBTOTAL(109,Despesas[dez/18])","v":0},{"$f":"SUBTOTAL(109,Despesas[Total])","v":0}]
[null,"PAGAMENTOS EFETUADOS"," ","jan/18","fev/18","mar/18","abr/18","mai/18","jun/18","jul/18","ago/18","set/18","out/18","nov/18","dez/18","Total"]
[null,"Reembolsos de capital",{"$nulls":13},{"$f":"SUM(D47:O47)","v":0}]
[null,"Aquisição de bens de equipamento",{"$nulls":13},0]
[null,"Outros custos da fase de arranque",{"$nulls":13},0]
[null,"Para reserva e/ou garantia",{"$nulls":13},0]
[null,"Dedução dos proprietários",{"$nulls":13},0]
[null,"TOTAL DE PAGAMENTOS EFETUADOS",null,{"$f":"Despesas[[#Totals],[jan/18]]+SUBTOTAL(109,PagamentosComDinheiroEmCaixa[jan/18])","v":0},{"$f":"Despesas[[#Totals],[fev/18]]+SUBTOTAL(109,PagamentosComDinheiroEmCaixa[fev/18])","v":0},{"$f":"Despesas[[#Totals],[mar/18]]+SUBTOTAL(109,PagamentosComDinheiroEmCaixa[mar/18])","v":0},{"$f":"Despesas[[#Totals],[abr/18]]+SUBTOTAL(109,PagamentosComDinheiroEmCaixa[abr/18])","v":0},{"$f":"Despesas[[#Totals],[mai/18]]+SUBTOTAL(109,PagamentosComDinheiroEmCaixa[mai/18])","v":0},{"$f":"Despesas[[#Totals],[jun/18]]+SUBTOTAL(109,PagamentosComDinheiroEmCaixa[jun/18])","v":0},{"$f":"Despesas[[#Totals],[jul/18]]+SUBTOTAL(109,PagamentosComDinheiroEmCaixa[jul/18])","v":0},{"$f":"Despesas[[#Totals],[ago/18]]+SUBTOTAL(109,PagamentosComDinheiroEmCaixa[ago/18])","v":0},{"$f":"Despesas[[#Totals],[set/18]]+SUBTOTAL(109,PagamentosComDinheiroEmCaixa[set/18])","v":0},{"$f":"Despesas[[#Totals],[out/18]]+SUBTOTAL(109,PagamentosComDinheiroEmCaixa[out/18])","v":0},{"$f":"Despesas[[#Totals],[nov/18]]+SUBTOTAL(109,PagamentosComDinheiroEmCaixa[nov/18])","v":0},{"$f":"Despesas[[#Totals],[dez/18]]+SUBTOTAL(109,PagamentosComDinheiroEmCaixa[dez/18])","v":0},0]
[null,"Dinheiro em caixa (fim do mês)",{"$f":"C17","v":0},{"$f":"D17-PagamentosComDinheiroEmCaixa[[#Totals],[jan/18]]","v":0},{"$f":"E17-PagamentosComDinheiroEmCaixa[[#Totals],[fev/18]]","v":0},{"$f":"F17-PagamentosComDinheiroEmCaixa[[#Totals],[mar/18]]","v":0},{"$f":"G17-PagamentosComDinheiroEmCaixa[[#Totals],[abr/18]]","v":0},{"$f":"H17-PagamentosComDinheiroEmCaixa[[#Totals],[mai/18]]","v":0},{"$f":"I17-PagamentosComDinheiroEmCaixa[[#Totals],[jun/18]]","v":0},{"$f":"J17-PagamentosComDinheiroEmCaixa[[#Totals],[jul/18]]","v":0},{"$f":"K17-PagamentosComDinheiroEmCaixa[[#Totals],[ago/18]]","v":0},{"$f":"L17-PagamentosComDinheiroEmCaixa[[#Totals],[set/18]]","v":0},{"$f":"M17-PagamentosComDinheiroEmCaixa[[#Totals],[out/18]]","v":0},{"$f":"N17-PagamentosComDinheiroEmCaixa[[#Totals],[nov/18]]","v":0},{"$f":"O17-PagamentosComDinheiroEmCaixa[[#Totals],[dez/18]]","v":0}]
[]
[null,"OUTROS DADOS OPERACIONAIS"," ","jan/18","fev/18","mar/18","abr/18","mai/18","jun/18","jul/18","ago/18","set/18","out/18","nov/18","dez/18","Total"]
[null,"Volume de vendas (euros)",{"$nulls":13},{"$f":"SUM(OutrosDadosOperacionais[[#This Row],[jan/18]:[dez/18]])","v":0}]
[null,"Saldo de contas a receber",{"$nulls":13},{"$f":"SUM(OutrosDadosOperacionais[[#This Row],[jan/18]:[dez/18]])","v":0}]
[null,"Saldo de crédito malparado",{"$nulls":13},{"$f":"SUM(OutrosDadosOperacionais[[#This Row],[jan/18]:[dez/18]])","v":0}]
[null,"Inventário disponível",{"$nulls":13},{"$f":"SUM(OutrosDadosOperacionais[[#This Row],[jan/18]:[dez/18]])","v":0}]
[null,"Saldo de contas a pagar",{"$nulls":13},{"$f":"SUM(OutrosDadosOperacionais[[#This Row],[jan/18]:[dez/18]])","v":0}]
[null,"Depreciação",{"$nulls":13},{"$f":"SUM(OutrosDadosOperacionais[[#This Row],[jan/18]:[dez/18]])","v":0}]

{"sheet":"Gráfico de Fluxo de Caixa","index":1,"n_rows":37,"n_cols":4,"rows_kept":37,"merged":[[1,1,34,16],[36,1,36,2]]}
[]
[null,"O gráfico de combinação a mostrar o Alerta de Valor Mínimo de Dinheiro em Caixa e a Projeção do Fluxo de Caixa está nesta célula."]
{"$rows_empty":34}
[null,"Alerta de valor mínimo de saldo",null,{"$f":"[0]!Dinheiro_mínimo","v":{"v":0,"d":"0 €"}}]